[Event "Aktobe Open 2022"]
[Site "Aktobe"]
[Date "2022.06.18"]
[Round "6.6"]
[White "Vokhidov, Shamsiddin"]
[Black "Nogerbek, Kazybek"]
[Result "1/2-1/2"]
[ECO "B36"]
[WhiteElo "2536"]
[BlackElo "2424"]
[Annotator "TA"]
[PlyCount "43"]
[EventDate "2022.06.14"]
[EventType "swiss"]
[EventCountry "KAZ"]
[SourceTitle "playchess.com"]
[Source "ChessBase"]
[SourceQuality "1"]
[TimeControl "5400+30"]

{[%evp 18,43,49,37,47,33,50,29,35,41,50,36,40,0,37,30,31,8,13,14,19,15,5,0,0,0,0,0]} 1. e4 {[%emt 0:00:02]} c5 {[%emt 0:00:29]} 2. Nf3 {[%emt 0:00:11]} g6 {[%emt 0:00:10]} 3. d4 {[%emt 0:01:22]} cxd4 {[%emt 0:00:06]} 4. Nxd4 {[%emt 0:00:05]} Nc6 {[%emt 0:00:11]} 5. c4 {[%emt 0:00:04]} Nf6 {[%emt 0:00:11]} 6. Nc3 {[%emt 0:00:02]} Nxd4 {[%emt 0:00:09]} 7. Qxd4 {[%emt 0:00:05]} d6 {[%emt 0:00:07]} 8. Be3 {[%emt 0:01:02]} Bg7 {[%emt 0:00:09]} 9. Be2 {[%emt 0:00:12]} O-O {[%emt 0:00:18]} 10. Qd3 {[%emt 0:01:44]} a5 $1 {[%emt 0:03:33][%mdl 4] now scores much better than the old 10...Be6. B36: Sicilian: Maroczy Bind: Gurgenidze System.} 11. O-O {[%emt 0:09:06]} a4 {[%emt 0:00:17]} 12. Rab1 {[%emt 0:05:34]} Be6 {[%emt 0:04:33] [#] White has an edge.} 13. Bd4 $146 {[%emt 0:05:37]} ({Predecessor:} 13. b3 a3 14. Nb5 Bd7 15. Nd4 Bc6 16. f3 Nd7 17. b4 Qc7 18. Rb3 Ra4 19. Nc2 {0-1 (51) Theocharous,S (1862)-Isaakidis,A (1806) Nicosia 2015}) 13... Nd7 {[%emt 0:11:38]} 14. Bxg7 {[%emt 0:07:43]} Kxg7 {[%emt 0:00:10]} 15. Nb5 {[%emt 0:06:41]} Nc5 {[%emt 0:02:58]} (15... Qb6 $5 {[%cal Rd7e5]}) 16. Qd4+ {[%emt 0:03:46]} f6 {[%emt 0:03:36]} 17. f4 {[%emt 0:00:23]} Qb6 {[%emt 0:04:58] The position is equal.} 18. Rfd1 {[%emt 0:03:06]} Bd7 {[%emt 0:04:59]} 19. Nc3 {[%emt 0:03:13]} Bc6 {[%emt 0:00:42]} 20. Qe3 {[%emt 0:05:41]} Nd7 {[%emt 0:06:30]} 21. Qxb6 {[%emt 0:03:23]} Nxb6 {[%emt 0:00:23]} 22. Rbc1 {[%emt 0:09:32] Weighted Error Value: White=0.07 (flawless) /Black=0.06 (flawless)} 1/2-1/2

[Event "Aktobe Open 2022"]
[Site "Aktobe"]
[Date "2022.06.18"]
[Round "6.7"]
[White "Afanasiev, Nikita"]
[Black "Ansat, Aldiyar"]
[Result "1/2-1/2"]
[ECO "D20"]
[WhiteElo "2567"]
[BlackElo "2314"]
[Annotator "TA"]
[PlyCount "69"]
[EventDate "2022.06.14"]
[EventType "swiss"]
[EventCountry "KAZ"]
[SourceTitle "playchess.com"]
[Source "ChessBase"]
[SourceQuality "1"]
[TimeControl "5400+30"]

{[%evp 14,69,22,19,20,19,25,0,10,-4,9,-11,0,-8,-13,-17,-14,-28,-9,-49,-14,-64,0,0,0,0,0,0,0,0,0,0,0,0,0,0,0,0,0,0,0,0,0,0,0,0,0,-4,-4,-4,-4,-8,-4,-4,-4,-8,-9,-8]} 1. d4 {[%emt 0:00:06]} d5 {[%emt 0:00:19]} 2. c4 {[%emt 0:00:17]} dxc4 {[%emt 0:00:06]} 3. e4 {[%emt 0:00:07]} c5 {[%emt 0:00:20]} 4. d5 {[%emt 0:01:13]} Nf6 {[%emt 0:00:05]} 5. Nc3 {[%emt 0:01:18]} e6 {[%emt 0:00:08]} 6. Bxc4 {[%emt 0:01:08]} exd5 {[%emt 0:00:11]} 7. exd5 {[%emt 0:00:45]} a6 {[%emt 0:01:52]} 8. a4 {[%emt 0:05:07]} Bd6 {[%emt 0:00:34] D20: Queen's Gambit Accepted: 3 e3 and 3 e4.} 9. Qe2+ {[%emt 0:03:40]} Qe7 {[%emt 0:10:14]} 10. Qxe7+ {[%emt 0:08:52]} Kxe7 {[%emt 0:00:52]} 11. Bg5 {[%emt 0:00:05]} h6 {[%emt 0:20:12]} 12. Bh4 {[%emt 0:00:36]} Bf5 {[%emt 0:01:02]} 13. Nf3 {[%emt 0:02:14]} Nbd7 {[%emt 0:09:53]} 14. O-O {[%emt 0:00:44]} Rhe8 {[%emt 0:04:12] [#]} 15. Nd2 $146 {[%emt 0:04:29]} ({Predecessor:} 15. Bg3 Bxg3 16. fxg3 Kd6 17. Nd2 Bg6 18. h3 Rad8 19. a5 Ne5 20. b3 Nd3 21. Bxd3 Bxd3 {1-0 (43) Stone,R (2355)-Cifuentes Parada,R (2535) Groningen 1991}) 15... Bf4 {[%emt 0:09:29]} 16. Nb3 {[%emt 0:20:17]} (16. Nde4 $5) 16... b6 {[%emt 0:07:53]} 17. d6+ {[%emt 0:10:22]} ({Better is} 17. Rfe1+ $11 Kd6 18. Rxe8 Nxe8 19. Bg3 Bxg3 20. hxg3) 17... Bxd6 {[%emt 0:07:28]} (17... Kf8 $15) 18. Nd5+ $11 {[%emt 0:00:42] The position is equal.} Kf8 {[%emt 0:03:16]} 19. Bxf6 {[%emt 0:01:00]} Nxf6 {[%emt 0:06:11]} 20. Nxb6 {[%emt 0:03:47] Pair of Knights!} Rab8 {[%emt 0:07:18]} 21. a5 {[%emt 0:00:11]} Bc7 {[%emt 0:02:39]} 22. Nxc5 {[%emt 0:00:26][%cal Bb3c5,Bc5a6,Ba6c7,Bc7d5][%mdl 32]} Bxb6 {[%emt 0:00:01]} 23. axb6 {[%emt 0:00:11]} Rxb6 {[%emt 0:00:13]} 24. b3 {[%emt 0:00:17]} Ne4 {[%emt 0:02:33]} 25. Nxa6 {[%emt 0:17:57]} Nd2 {[%emt 0:00:13][%csl LRb3,LRf1]} 26. Nc7 {[%emt 0:00:22]} Rc8 {[%emt 0:01:10]} 27. Nd5 {[%emt 0:00:27]} Rbb8 {[%emt 0:00:41]} 28. Rfe1 {[%emt 0:05:19]} Nxc4 {[%emt 0:00:14]} 29. bxc4 {[%emt 0:00:03]} Rxc4 {[%emt 0:00:04]} 30. f3 {[%emt 0:00:15]} (30. Ne3 $5 {[%cal Re3c4]} Rc5 31. Nxf5 Rxf5 32. f3 $11) 30... Be6 {[%emt 0:00:16]} 31. Ne3 {[%emt 0:00:05]} Rd4 {[%emt 0:00:18]} 32. Re2 {[%emt 0:00:10]} g5 {[%emt 0:00:23]} 33. Kf2 {[%emt 0:00:04]} Kg7 {[%emt 0:00:13]} 34. g3 {[%emt 0:00:45]} Rb3 {[%emt 0:00:28]} 35. Rd1 {[%emt 0:00:44] Weighted Error Value: White=0.07 (flawless) /Black=0.06 (flawless)} 1/2-1/2

[Event "Aktobe Open 2022"]
[Site "Aktobe"]
[Date "2022.06.18"]
[Round "6.10"]
[White "Kostenko, Petr"]
[Black "Serikbay, Assel"]
[Result "1-0"]
[ECO "D00"]
[WhiteElo "2416"]
[BlackElo "2238"]
[Annotator "TA"]
[PlyCount "95"]
[EventDate "2022.06.14"]
[EventType "swiss"]
[EventCountry "KAZ"]
[SourceTitle "playchess.com"]
[Source "ChessBase"]
[SourceQuality "1"]
[TimeControl "5400+30"]

{[%evp 9,95,40,62,52,56,44,58,66,96,102,101,106,109,108,141,139,146,145,145,147,157,157,161,158,155,156,201,198,202,188,193,159,210,187,183,183,183,189,177,163,154,140,145,114,110,79,75,26,20,8,68,75,79,19,28,0,0,0,0,0,26,42,51,8,143,131,127,133,135,125,128,122,139,116,271,268,273,263,267,239,261,249,256,242,417,408,1094,979]} 1. d4 {[%emt 0:00:07]} Nf6 {[%emt 0:00:07]} 2. Bf4 {[%emt 0:00:13]} d5 {[%emt 0:00:50]} 3. e3 {[%emt 0:00:07]} c5 {[%emt 0:00:16]} 4. dxc5 {[%emt 0:00:22]} Qa5+ {[%emt 0:04:14]} 5. Nd2 {[%emt 0:00:29] [#]} Nbd7 $146 {[%emt 0:01:17]} ({Predecessor:} 5... Nc6 6. Ngf3 Qxc5 7. a3 Qb6 8. b4 g6 9. c4 Bg7 10. Rc1 dxc4 11. Bxc4 Nh5 {½-½ (62) Zhou,J (2608)-Lagno,K (2549) Changsha 2019}) 6. a3 {[%emt 0:00:42] Hoping for b4. D00: 1 d4 d5: Unusual lines.} Qxc5 {[%emt 0:01:10]} 7. Ngf3 {[%emt 0:00:10] Inhibits e5.} e6 {[%emt 0:05:18]} 8. c4 {[%emt 0:00:53] White is slightly better.} Bd6 {[%emt 0:18:16]} 9. b4 {[%emt 0:04:08]} Qc7 {[%emt 0:00:13]} 10. cxd5 $1 {[%emt 0:06:39]} Bxf4 {[%emt 0:00:52]} 11. dxe6 {[%emt 0:00:14]} (11. exf4 $6 exd5 12. g3 O-O $11) 11... fxe6 {[%emt 0:01:01]} 12. Rc1 $36 {[%emt 0:01:07][%mdl 2048] White has strong initiative.} (12. exf4 Qxf4 13. g3 Qh6 $16) 12... Qd6 {[%emt 0:00:59]} 13. exf4 {[%emt 0:00:10]} Qxf4 {[%emt 0:02:26]} 14. g3 {[%emt 0:00:34]} Qf5 {[%emt 0:04:39]} 15. Bg2 {[%emt 0:00:29]} Qd3 {[%emt 0:03:15]} 16. Nc4 {[%emt 0:00:58]} Qxd1+ {[%emt 0:00:05]} 17. Rxd1 {[%emt 0:00:24]} O-O {[%emt 0:00:29]} 18. O-O {[%emt 0:00:10]} Nd5 {[%emt 0:08:22]} 19. Rfe1 {[%emt 0:03:15]} N7b6 {[%emt 0:05:04]} 20. Na5 {[%emt 0:01:59]} Na4 {[%emt 0:06:15]} (20... Nc7 $16 21. Ne5 Nbd5) 21. Ng5 {[%emt 0:02:24]} Nac3 {[%emt 0:05:44]} 22. Rd3 {[%emt 0:04:18]} Rf6 {[%emt 0:04:50]} 23. f4 {[%emt 0:08:20]} h6 {[%emt 0:09:30]} 24. Ne4 {[%emt 0:00:26]} Nxe4 {[%emt 0:00:05]} 25. Bxe4 {[%emt 0:00:08]} Rb8 {[%emt 0:00:27]} 26. Rc1 {[%emt 0:11:05]} Bd7 {[%emt 0:07:06]} 27. f5 {[%emt 0:06:29] Threatens to win with fxe6.} Bb5 {[%emt 0:02:42]} 28. Rd2 {[%emt 0:26:59]} ({White should try} 28. Rf3 $16) 28... Ne3 $11 {[%emt 0:01:40]} 29. Rc3 {[%emt 0:06:23]} Nxf5 {[%emt 0:00:26]} (29... exf5 $11 30. Bf3 b6) 30. Nxb7 $14 {[%emt 0:01:24]} Rbf8 {[%emt 0:03:29][%cal Of5d4] [#]} 31. Nc5 {[%emt 0:01:19] White is more active.} (31. Rf3 $1 $16) 31... Nd4 $1 $11 {[%emt 0:01:57] Strongly threatening ...Ne2+.} 32. Bg2 {[%emt 0:05:09]} Ne2+ {[%emt 0:02:49]} 33. Rxe2 $1 {[%emt 0:00:05]} Bxe2 {[%emt 0:00:01]} 34. Nd7 {[%emt 0:00:09][%csl LRf6,LRf8]} Rd8 {[%emt 0:01:00]} 35. Nxf6+ {[%emt 0:00:04]} gxf6 {[%emt 0:00:01][%mdl 4096] Endgame KRB-KRB} 36. Rc6 {[%emt 0:01:18]} Re8 {[%emt 0:00:09]} (36... Bb5 $11 {remains equal.} 37. Rc5 (37. Rxe6 Rd1+ 38. Kf2 Rd2+ 39. Kg1 Rd1+ 40. Kf2 Rd2+ 41. Kg1 Rd1+ $11) 37... a6) 37. Rc7 {[%emt 0:01:44]} a6 {[%emt 0:00:05]} 38. Kf2 {[%emt 0:00:25]} Bb5 {[%emt 0:00:42]} 39. Bc6 {[%emt 0:00:20]} Rb8 {[%emt 0:00:15]} 40. Ke3 {[%emt 0:00:13]} Bf1 {[%emt 0:01:13]} 41. Re7 {[%emt 0:00:23]} Rb6 $2 {[%emt 0:00:55] Black cannot hold the game after this.} (41... e5 $16 {might work better.}) 42. Rxe6 $18 {[%emt 0:01:33]} Kf7 {[%emt 0:00:09]} 43. Rd6 {[%emt 0:00:04] aiming for Bd5+.} Ke7 {[%emt 0:00:52]} 44. Rd7+ {[%emt 0:00:04]} Ke6 {[%emt 0:00:03] [#]} 45. Ba4 {[%emt 0:00:07]} a5 {[%emt 0:01:10]} 46. Rd1 {[%emt 0:00:48]} ({Don't do} 46. bxa5 Ra6 47. Rh7 (47. Rd1 Bg2 $18) 47... Rxa5 $18) 46... Bc4 $2 {[%emt 0:00:26]} (46... Bg2 47. Rd2 (47. bxa5 Ra6 $18) 47... Bh1) 47. Kd4 {[%emt 0:01:01]} Ba6 {[%emt 0:00:34]} (47... axb4 $142 48. Kxc4 bxa3) 48. Kc5 {[%emt 0:08:38] Weighted Error Value: White=0.10 (very precise) /Black=0.23 (precise)} 1-0

[Event "Aktobe Open 2022"]
[Site "Aktobe"]
[Date "2022.06.18"]
[Round "7.1"]
[White "Agmanov, Zhandos"]
[Black "Rychagov, Andrey"]
[Result "1/2-1/2"]
[ECO "C09"]
[WhiteElo "2420"]
[BlackElo "2549"]
[Annotator "TA"]
[PlyCount "44"]
[EventDate "2022.06.14"]
[EventType "swiss"]
[EventCountry "KAZ"]
[SourceTitle "playchess.com"]
[Source "ChessBase"]
[SourceQuality "1"]
[TimeControl "5400+30"]

{[%evp 20,21,37,37]} 1. e4 {[%emt 0:00:09]} e6 {[%emt 0:00:16]} 2. d4 {[%emt 0:00:24]} d5 {[%emt 0:00:04]} 3. Nd2 {[%emt 0:00:33]} c5 {[%emt 0:00:37]} 4. exd5 {[%emt 0:01:04]} exd5 {[%emt 0:00:04]} 5. Ngf3 {[%emt 0:00:08]} Nc6 {[%emt 0:00:05]} 6. Bb5 {[%emt 0:00:20]} Bd6 {[%emt 0:00:05]} 7. dxc5 {[%emt 0:00:29]} Bxc5 {[%emt 0:00:05]} 8. Nb3 {[%emt 0:00:11]} Bd6 {[%emt 0:00:09]} 9. O-O {[%emt 0:00:07]} Nge7 {[%emt 0:00:03]} 10. c3 {[%emt 0:00:23]} O-O {[%emt 0:00:11]} 11. Bd3 {[%emt 0:00:29] [#] 11.h3 is the hot move.} {Predecessor:} h6 $146 {C09: French Tarrasch: 3...c5 4 exd5 exd5 5 Ngf3 Nc6.} 12. h3 Nf5 13. Re1 Qf6 14. Bc2 Rd8 15. Qd3 g6 16. Qd2 g5 17. Qd3 Bc7 18. Be3 Nxe3 19. Rxe3 Bb6 20. Nbd4 Bd7 21. Rae1 Kf8 22. Nxc6 bxc6 {1-0 (35) Mamedyarov,S (2764)-Ivanchuk,V (2678) Chess.com INT 2020} 1/2-1/2

[Event "Aktobe Open 2022"]
[Site "Aktobe"]
[Date "2022.06.18"]
[Round "7.2"]
[White "Vakhidov, Jakhongir"]
[Black "Utegaliyev, Azamat"]
[Result "1-0"]
[ECO "D14"]
[WhiteElo "2552"]
[BlackElo "2463"]
[Annotator "TA"]
[PlyCount "117"]
[EventDate "2022.06.14"]
[EventType "swiss"]
[EventCountry "KAZ"]
[SourceTitle "playchess.com"]
[Source "ChessBase"]
[SourceQuality "1"]
[TimeControl "5400+30"]

{[%evp 15,117,8,30,27,27,31,27,20,13,25,43,43,40,30,69,62,69,59,108,78,156,142,166,157,159,162,149,160,156,148,197,199,283,271,275,292,281,292,275,280,279,268,268,199,231,226,244,197,223,210,211,172,200,0,208,209,228,214,217,195,202,0,202,135,197,162,202,172,241,131,178,169,184,173,466,477,393,235,486,472,529,487,513,0,0,0,856,866,932,967,972,908,1369,1324,1081,433,982,836,747,474,479,472,29982,4890]} 1. c4 {[%emt 0:00:05]} c6 {[%emt 0:04:44]} 2. Nc3 {[%emt 0:00:33]} d5 {[%emt 0:00:08]} 3. d4 {[%emt 0:00:05]} Nf6 {[%emt 0:00:05]} 4. cxd5 {[%emt 0:00:10]} cxd5 {[%emt 0:00:05]} 5. Bf4 {[%emt 0:00:07]} Nc6 {[%emt 0:00:11]} 6. e3 {[%emt 0:00:07]} Bf5 {[%emt 0:00:20]} 7. Nf3 {[%emt 0:00:11]} e6 {[%emt 0:00:26]} 8. Be2 {[%emt 0:00:11]} Bd6 {[%emt 0:07:13]} 9. Ne5 $1 {[%emt 0:00:11][%mdl 4] is currently scoring better than 9.Bxd6. D14: Slav Defence: Exchange variation with ...Bf5.} O-O {[%emt 0:34:28]} 10. Nxc6 {[%emt 0:00:13]} bxc6 {[%emt 0:00:07]} 11. Bxd6 {[%emt 0:00:08] White has an edge.} Qxd6 {[%emt 0:00:06]} 12. O-O {[%emt 0:00:08]} Rab8 {[%emt 0:10:52]} 13. Na4 {[%emt 0:01:11][%cal Bc3a4,Ba4c5,Bc5b3,Bb3a5,Ba5c6,Bc6e5][%mdl 32] [#]} e5 $146 {[%emt 0:01:20]} ({Predecessor:} 13... Nd7 14. Rc1 Rfc8 15. Qd2 c5 16. dxc5 Nxc5 17. Nxc5 Rxc5 18. Rxc5 Qxc5 19. Rc1 Qb6 {½-½ (42) Krizek,F (2141)-Roubalik,J (2103) Czech Republic 2006}) 14. Rc1 {[%emt 0:02:54]} e4 {[%emt 0:01:23]} 15. Rc3 {[%emt 0:06:46]} h5 {[%emt 0:03:20]} 16. Qc2 {[%emt 0:07:14]} Rbc8 {[%emt 0:01:10]} (16... Rfc8 $14) 17. Rc1 {[%emt 0:02:38][%cal Rc3c6]} Bd7 {[%emt 0:01:08]} (17... Ng4 $142 18. Bxg4 hxg4) 18. Nc5 $16 {[%emt 0:16:26]} Ng4 {[%emt 0:01:49]} 19. Bxg4 {[%emt 0:02:52]} Bxg4 {[%emt 0:00:05]} 20. h3 {[%emt 0:00:13]} Bf5 {[%emt 0:00:49]} 21. Nb3 $1 {[%emt 0:01:24]} Bd7 {[%emt 0:16:00] [#]} 22. Na5 $1 {[%emt 0:00:26]} Qg6 {[%emt 0:00:10]} (22... g5 $16 {was worth a try.} 23. Nxc6 Bxc6) 23. Nxc6 $18 {[%emt 0:02:55]} Rce8 {[%emt 0:00:05] Against Ne7+} (23... Qg5 $142) 24. Ne5 {[%emt 0:19:48]} Rxe5 {[%emt 0:00:29]} 25. dxe5 {[%emt 0:00:01]} Bxh3 {[%emt 0:00:07][%csl Gh3][%cal Rg6g2]} 26. f4 {[%emt 0:00:07]} Be6 {[%emt 0:01:28]} 27. Qf2 {[%emt 0:00:07]} Qg4 {[%emt 0:00:30]} 28. Kh2 {[%emt 0:07:09]} h4 {[%emt 0:00:35]} 29. Rc6 {[%emt 0:01:21]} Rb8 {[%emt 0:01:59]} 30. b3 {[%emt 0:00:47]} g6 {[%emt 0:01:52]} 31. Rd6 {[%emt 0:00:32]} Rb7 {[%emt 0:00:56]} 32. Rc5 {[%emt 0:00:32]} Kg7 {[%emt 0:00:30]} 33. Rdc6 {[%emt 0:05:39]} Rd7 {[%emt 0:01:15]} 34. Rd6 {[%emt 0:02:42] aiming for Rxd7.} Rb7 {[%emt 0:00:05]} 35. Rd8 {[%emt 0:00:52]} Qh5 {[%emt 0:03:48]} 36. Rc1 {[%emt 0:07:14]} Qg4 {[%emt 0:01:41]} 37. Rc2 {[%emt 0:00:24]} Kh7 {[%emt 0:01:08]} 38. Rc1 {[%emt 0:04:01]} Kg7 $1 {[%emt 0:00:29]} 39. Kh1 {[%emt 0:00:04]} Qh5 {[%emt 0:03:44]} (39... h3 $16 {might work better.} 40. g3 Qf3+ 41. Qxf3 exf3) 40. Kg1 {[%emt 0:04:32]} Qg4 {[%emt 0:00:28]} 41. Kf1 {[%emt 0:00:13]} a5 {[%emt 0:00:30] [#]} (41... Rb6 $142 42. Kg1 Rb7) 42. Kg1 {[%emt 0:03:29]} (42. Qe2 $1 $18 {[%cal Re2g4]}) 42... a4 {[%emt 0:00:37]} (42... h3 $16 43. g3 a4) 43. bxa4 {[%emt 0:01:08] a5 is the strong threat.} h3 {[%emt 0:00:04]} 44. a5 {[%emt 0:00:55] Threatens to win with a6.} Qh5 $2 {[%emt 0:03:39]} (44... Rc7 45. Rb1 (45. Rxc7 Qd1+ 46. Kh2 hxg2 $16) 45... Bd7) 45. a6 {[%emt 0:00:27]} Ra7 {[%emt 0:00:25]} 46. Rd6 {[%emt 0:00:22]} (46. Rb1 $142 {Black must now prevent Rbb8.} hxg2 47. Qxg2 Rxa6 48. Qg5) 46... Qg4 $2 {[%emt 0:00:22]} (46... hxg2 47. Qxg2 Ra8) 47. g3 {[%emt 0:02:01]} h2+ {[%emt 0:01:15]} 48. Qxh2 {[%emt 0:01:06] And now Rd8 would win.} Ra8 {[%emt 0:00:00] Inhibits Rd8.} 49. a7 $2 {[%emt 0:00:16]} (49. f5 $18 Qxf5 50. Qf2 Qxe5 51. Rb6) 49... Rh8 $1 $11 {[%emt 0:00:00]} 50. Qg2 {[%emt 0:00:15]} Ra8 $2 {[%emt 0:00:18][%mdl 8192]} (50... Rh3 $11 51. Kf2 (51. a8=Q Rxg3 52. Rc2 Qd1+ 53. Kh2 Rxg2+ 54. Rxg2 Qh5+ 55. Kg3 Qg4+ 56. Kf2 Qf3+ 57. Kg1 Qd1+ 58. Kh2 Qh5+ 59. Kg3 Qh3+ 60. Kf2 Qf3+ 61. Kg1 Qd1+ 62. Kh2 $11) 51... Qh5) 51. Ra6 $18 {[%emt 0:00:38]} Bf5 {[%emt 0:01:10]} 52. Ra3 {[%emt 0:00:32]} Qh5 {[%emt 0:00:16]} 53. Qh2 {[%emt 0:00:18] Strongly threatening Qxh5.} Qf3 {[%emt 0:00:24]} 54. Rf1 {[%emt 0:00:12]} Qg4 {[%emt 0:00:03]} 55. Rb3 {[%emt 0:01:15]} (55. Qh4 $142) 55... Rh8 {[%emt 0:00:46]} (55... Rxa7 $142 56. Rb8 Qh3 57. Qxh3 Bxh3) 56. Qg2 {[%emt 0:00:26]} Ra8 {[%emt 0:00:19]} 57. Rb8 {[%emt 0:00:23]} Rxa7 {[%emt 0:00:04]} 58. Qh2 {[%emt 0:00:03][%csl Gb8][%cal Rh2h8]} Bc8 {[%emt 0:01:16]} (58... Qh3 $18 59. Qxh3 Bxh3) 59. f5 {[%emt 0:03:01] Weighted Error Value: White=0.32/Black=0.32} 1-0

[Event "Aktobe Open 2022"]
[Site "Aktobe"]
[Date "2022.06.18"]
[Round "7.3"]
[White "Ponkratov, Pavel"]
[Black "Vokhidov, Shamsiddin"]
[Result "1/2-1/2"]
[ECO "B81"]
[WhiteElo "2624"]
[BlackElo "2536"]
[Annotator "TA"]
[PlyCount "106"]
[EventDate "2022.06.14"]
[EventType "swiss"]
[EventCountry "KAZ"]
[SourceTitle "playchess.com"]
[Source "ChessBase"]
[SourceQuality "1"]
[TimeControl "5400+30"]

{[%evp 14,106,33,-17,-10,-17,-6,-25,-12,-33,-20,-43,-46,-20,-39,-50,35,24,35,0,0,0,0,-43,-28,-41,0,0,0,0,0,0,0,0,0,0,0,0,0,0,0,0,0,0,0,0,0,0,0,0,0,0,16,14,12,16,23,31,60,16,16,16,16,16,20,20,20,20,26,26,26,26,26,26,26,26,26,26,26,26,26,26,20,20,20,20,20,20,26,0,0,0,26,0,0]} 1. e4 {[%emt 0:00:03]} c5 {[%emt 0:00:06]} 2. Nf3 {[%emt 0:00:04]} d6 {[%emt 0:00:06]} 3. d4 {[%emt 0:00:03]} cxd4 {[%emt 0:00:04]} 4. Nxd4 {[%emt 0:00:03]} Nf6 {[%emt 0:00:07]} 5. Nc3 {[%emt 0:00:04]} a6 {[%emt 0:00:18]} 6. h3 {[%emt 0:03:36]} e6 {[%emt 0:00:21]} 7. g4 {[%emt 0:00:24][%cal Bg2g4,Bg4g5][%mdl 32]} h6 {[%emt 0:00:02]} 8. Be3 {[%emt 0:01:14]} (8. Bg2 $14) 8... b5 $1 $11 {[%emt 0:04:08] B81: Sicilian Scheveningen: Keres Attack.} 9. Bg2 {[%emt 0:09:18][%cal Oe4e5]} Bb7 $1 {[%emt 0:00:07]} 10. a3 {[%emt 0:00:08]} Nbd7 {[%emt 0:00:48] Black has an edge.} 11. h4 {[%emt 0:00:10] [#]} Rc8 $146 {[%emt 0:13:25][%cal Oc8c3]} ({Predecessor:} 11... Ne5 12. g5 hxg5 13. hxg5 Rxh1+ 14. Bxh1 Nfd7 15. f4 Nc4 16. Bc1 Rc8 17. Nde2 g6 {½-½ (71) Rombaldoni,A (2459)-Georgiev,K (2666) Porto Carras 2011}) 12. g5 {[%emt 0:03:23] [#]} Rxc3 $1 {[%emt 0:03:02]} 13. bxc3 {[%emt 0:00:06]} Nxe4 {[%emt 0:00:06]} 14. g6 {[%emt 0:05:10]} Qf6 {[%emt 0:00:19]} (14... Ne5 $15 15. gxf7+ Kxf7 16. Bxe4 Bxe4) 15. gxf7+ $14 {[%emt 0:02:10]} Kxf7 {[%emt 0:00:14]} 16. Qg4 {[%emt 0:05:12]} Ne5 {[%emt 0:07:12][%cal Bd7e5,Be5c4,Bc4d6,Bd6e4,Be4c3][%mdl 32]} 17. Qh3 {[%emt 0:00:42]} Be7 {[%emt 0:07:29] Threatens to win with ...Rc8.} 18. f4 {[%emt 0:08:22][%cal Bf2f4,Bf4f5][%mdl 32]} Nc4 {[%emt 0:17:58][%mdl 1024] Black has compensation. Pair of Knights!} 19. O-O $1 {[%emt 0:04:29]} Rc8 {[%emt 0:03:30]} 20. Rae1 {[%emt 0:04:52]} d5 {[%emt 0:04:08] aiming for ...Bc5.} 21. f5 $1 {[%emt 0:03:59][%cal Rf5e6]} e5 {[%emt 0:00:07]} 22. Ne6 $1 {[%emt 0:00:04] Bxe4 is the strong threat.} Ncd6 {[%emt 0:08:13]} 23. Bxe4 {[%emt 0:10:08]} (23. Qg4 Kg8 24. Bxe4 Nxe4 $15) 23... Nxe4 {[%emt 0:00:25]} 24. Bg5 {[%emt 0:00:05]} Rxc3 {[%emt 0:10:50]} 25. Qxc3 {[%emt 0:08:15] Really sharp!} ({Of course not} 25. Bxf6 Rxh3 26. Bxe7 (26. Bxe5 Rxh4 27. Rd1 g5 $17) 26... Kxe7 27. Nxg7 Rg3+ 28. Kh2 Rxg7 $15) 25... Nxc3 {[%emt 0:02:25]} 26. Bxf6 {[%emt 0:00:05]} Bxf6 {[%emt 0:00:09]} 27. Rxe5 {[%emt 0:03:46]} Bxe5 {[%emt 0:00:18]} 28. Nd8+ {[%emt 0:00:04]} Kf6 {[%emt 0:04:25]} 29. Nxb7 $11 {[%emt 0:00:05][%mdl 4096] Endgame KRN-KBN} Ne4 {[%emt 0:01:08]} 30. Rd1 {[%emt 0:04:23]} d4 {[%emt 0:01:12]} 31. Nd8 {[%emt 0:02:56]} Nc3 {[%emt 0:00:36]} 32. Rf1 {[%emt 0:01:07]} Bd6 {[%emt 0:00:22]} 33. Nc6 {[%emt 0:02:01]} Bxa3 {[%emt 0:00:26]} 34. Kg2 {[%emt 0:00:06]} Nd5 {[%emt 0:01:41]} 35. Kf3 {[%emt 0:00:21]} Kxf5 {[%emt 0:02:34]} 36. Ra1 {[%emt 0:00:44]} (36. Re1 $5 {[%cal Re1e5]} d3 37. cxd3 $14) 36... Bb2 {[%emt 0:00:54]} 37. Rxa6 {[%emt 0:00:14]} Bc3 {[%emt 0:01:36] Prevents Ra5.} 38. Ra8 {[%emt 0:00:54]} Ne3 {[%emt 0:01:28]} 39. Rb8 {[%emt 0:04:12]} b4 {[%emt 0:00:18]} 40. Nxb4 {[%emt 0:03:24]} Bxb4 {[%emt 0:00:08][%mdl 64] [#] Remove Defender} 41. Rxb4 {[%emt 0:00:04] And now c3 would win.} Nxc2 {[%emt 0:00:04] KR-KN} 42. Rb5+ {[%emt 0:00:04]} Kf6 {[%emt 0:01:34]} 43. Ke4 {[%emt 0:00:11]} g6 {[%emt 0:02:07]} 44. Rb6+ {[%emt 0:00:22]} Kf7 {[%emt 0:00:11]} 45. Ke5 {[%emt 0:00:08] Strongly threatening Rb7+.} d3 {[%emt 0:00:47]} 46. Rf6+ {[%emt 0:00:33]} Ke7 {[%emt 0:00:47]} 47. Re6+ {[%emt 0:02:51]} Kf7 {[%emt 0:00:06]} 48. Rd6 {[%emt 0:00:06]} Ne1 {[%emt 0:00:32]} 49. Rd7+ {[%emt 0:03:10]} Ke8 {[%emt 0:00:01]} 50. Ke6 {[%emt 0:00:07]} Nf3 {[%emt 0:00:50]} 51. Re7+ {[%emt 0:00:51]} Kd8 {[%emt 0:00:01] ( -> ...Nd4+)} 52. Rd7+ {[%emt 0:00:06]} Ke8 {[%emt 0:00:02]} 53. Re7+ {[%emt 0:00:05]} Kd8 {[%emt 0:00:05] Weighted Error Value: White=0.06 (flawless) /Black=0.07 (flawless)} 1/2-1/2